[Event "Early-Titled-Tuesday-Blitz-April-02-2024"]
[Site "Chess.com"]
[Date "2024.04.02"]
[Round "5"]
[White "LileKoridze"]
[Black "chess_sharparchitect"]
[Result "0-1"]
[WhiteElo "2417"]
[BlackElo "2282"]
[TimeControl "180+1"]
[EndTime "8:54:58 PDT"]
[Termination "chess_sharparchitect won by resignation"]

1. d4 {[%clk 0:03:00.9]} 1... Nf6 {[%clk 0:02:59]} 2. c4 {[%clk 0:03:00.9]} 2...
e6 {[%clk 0:02:58.7]} 3. Nf3 {[%clk 0:03:01.3]} 3... d5 {[%clk 0:02:58.4]} 4. g3
{[%clk 0:03:01.3]} 4... c5 {[%clk 0:02:56.4]} 5. cxd5 {[%clk 0:02:43.5]} 5...
exd5 {[%clk 0:02:55]} 6. Bg2 {[%clk 0:02:36.9]} 6... Nc6 {[%clk 0:02:54.1]} 7.
O-O {[%clk 0:02:36.6]} 7... c4 {[%clk 0:02:52.7]} 8. Nc3 {[%clk 0:02:20.9]} 8...
Be6 {[%clk 0:02:41]} 9. Ne5 {[%clk 0:01:18.2]} 9... Bd6 {[%clk 0:02:34.7]} 10.
Nxc6 {[%clk 0:01:18.2]} 10... bxc6 {[%clk 0:02:34.6]} 11. e4 {[%clk 0:01:18.7]}
11... dxe4 {[%clk 0:02:14.8]} 12. Nxe4 {[%clk 0:01:18.2]} 12... O-O {[%clk
0:02:10]} 13. Bg5 {[%clk 0:01:16.1]} 13... Be7 {[%clk 0:02:09.3]} 14. Nxf6+
{[%clk 0:01:16]} 14... Bxf6 {[%clk 0:02:09.1]} 15. Bxf6 {[%clk 0:01:16.3]} 15...
Qxf6 {[%clk 0:02:09.7]} 16. Bxc6 {[%clk 0:01:16.7]} 16... Rab8 {[%clk 0:02:08]}
17. d5 {[%clk 0:01:14.3]} 17... Bh3 {[%clk 0:02:05.5]} 18. Re1 {[%clk
0:01:13.9]} 18... Rxb2 {[%clk 0:02:04.3]} 19. f4 {[%clk 0:00:53.2]} 19... Rg2+
{[%clk 0:01:52.2]} 20. Kh1 {[%clk 0:00:53.3]} 20... Qb2 {[%clk 0:01:52.2]} 21.
Qf3 {[%clk 0:00:46.7]} 21... Rxh2+ {[%clk 0:01:41]} 22. Kg1 {[%clk 0:00:46.5]}
22... Bg2 {[%clk 0:01:31.7]} 23. Qe2 {[%clk 0:00:40.7]} 23... Qxe2 {[%clk
0:01:12.1]} 24. Rxe2 {[%clk 0:00:40.9]} 24... Rh1+ {[%clk 0:01:12.5]} 25. Kxg2
{[%clk 0:00:41.3]} 25... Rxa1 {[%clk 0:01:13.1]} 26. d6 {[%clk 0:00:38.1]} 26...
Rd1 {[%clk 0:01:11.9]} 27. d7 {[%clk 0:00:37.9]} 27... c3 {[%clk 0:01:11.1]} 28.
Ba4 {[%clk 0:00:34.7]} 28... Rd2 {[%clk 0:01:08.2]} 29. Kf2 {[%clk 0:00:34.9]}
29... Rd8 {[%clk 0:00:57.8]} 30. Rxd2 {[%clk 0:00:30.6]} 30... cxd2 {[%clk
0:00:57.8]} 31. Ke2 {[%clk 0:00:31.2]} 31... h5 {[%clk 0:00:55.7]} 32. Kxd2
{[%clk 0:00:31.1]} 32... Kf8 {[%clk 0:00:56.1]} 33. Ke3 {[%clk 0:00:31]} 33...
Ke7 {[%clk 0:00:56.5]} 34. Ke4 {[%clk 0:00:31.3]} 34... g6 {[%clk 0:00:56.2]}
35. f5 {[%clk 0:00:23.2]} 35... g5 {[%clk 0:00:51.2]} 36. Ke5 {[%clk 0:00:18.4]}
36... f6+ {[%clk 0:00:51.4]} 37. Kd5 {[%clk 0:00:18.4]} 37... Rxd7+ {[%clk
0:00:40.7]} 0-1

[Event "Early-Titled-Tuesday-Blitz-April-02-2024"]
[Site "Chess.com"]
[Date "2024.04.02"]
[Round "5"]
[White "ladytitan"]
[Black "RamonManon0g"]
[Result "0-1"]
[WhiteElo "2171"]
[BlackElo "2408"]
[TimeControl "180+1"]
[EndTime "8:54:58 PDT"]
[Termination "RamonManon0g won by checkmate"]

1. d4 {[%clk 0:03:00.9]} 1... Nf6 {[%clk 0:02:59.7]} 2. c4 {[%clk 0:02:59.3]}
2... g6 {[%clk 0:03:00.6]} 3. Nc3 {[%clk 0:02:59.3]} 3... d5 {[%clk 0:03:01.5]}
4. cxd5 {[%clk 0:02:59.7]} 4... Nxd5 {[%clk 0:03:02.4]} 5. e4 {[%clk 0:03:00.3]}
5... Nxc3 {[%clk 0:03:03.1]} 6. bxc3 {[%clk 0:03:01.2]} 6... c5 {[%clk
0:03:03.5]} 7. Nf3 {[%clk 0:03:01.5]} 7... Bg7 {[%clk 0:03:04]} 8. Be3 {[%clk
0:03:01.7]} 8... O-O {[%clk 0:03:04.1]} 9. Be2 {[%clk 0:03:01.6]} 9... Nc6
{[%clk 0:03:04.3]} 10. O-O {[%clk 0:02:58.7]} 10... Bg4 {[%clk 0:03:04.3]} 11.
d5 {[%clk 0:02:54.3]} 11... Na5 {[%clk 0:02:52]} 12. Rc1 {[%clk 0:02:45.7]}
12... b6 {[%clk 0:02:42.5]} 13. h3 {[%clk 0:02:30]} 13... Bxf3 {[%clk
0:02:40.5]} 14. Bxf3 {[%clk 0:02:30.9]} 14... Qc7 {[%clk 0:02:35.8]} 15. Be2
{[%clk 0:02:23.6]} 15... Rad8 {[%clk 0:02:34.8]} 16. c4 {[%clk 0:02:16.6]} 16...
f5 {[%clk 0:02:28.4]} 17. exf5 {[%clk 0:02:12.9]} 17... Rxf5 {[%clk 0:02:29.3]}
18. Bg4 {[%clk 0:02:10.1]} 18... Rff8 {[%clk 0:02:21.7]} 19. Be6+ {[%clk
0:02:09.1]} 19... Kh8 {[%clk 0:02:22.2]} 20. Qc2 {[%clk 0:02:03.1]} 20... Nb7
{[%clk 0:02:16.4]} 21. Bd2 {[%clk 0:01:58.9]} 21... Nd6 {[%clk 0:02:10]} 22. Bc3
{[%clk 0:01:55.7]} 22... Nf5 {[%clk 0:02:09.9]} 23. Bxf5 {[%clk 0:01:16.4]}
23... Rxf5 {[%clk 0:02:08.2]} 24. Rfe1 {[%clk 0:01:14.4]} 24... Rdf8 {[%clk
0:01:59.6]} 25. Re2 {[%clk 0:01:11.4]} 25... Bf6 {[%clk 0:01:03.4]} 26. Rce1
{[%clk 0:01:05]} 26... Rf7 {[%clk 0:01:00.2]} 27. g4 {[%clk 0:00:40.8]} 27...
Rf4 {[%clk 0:00:55.1]} 28. Bd2 {[%clk 0:00:19.7]} 28... Rf3 {[%clk 0:00:41.7]}
29. Kg2 {[%clk 0:00:14.4]} 29... Bd4 {[%clk 0:00:40]} 30. Qe4 {[%clk 0:00:12]}
30... Rxf2+ {[%clk 0:00:38]} 31. Rxf2 {[%clk 0:00:01.2]} 31... Rxf2+ {[%clk
0:00:38.9]} 32. Kg1 {[%clk 0:00:01.5]} 32... Qh2# {[%clk 0:00:38.5]} 0-1

[Event "Early-Titled-Tuesday-Blitz-April-02-2024"]
[Site "Chess.com"]
[Date "2024.04.02"]
[Round "5"]
[White "Mazarini41"]
[Black "IsmaelAmadorGarcia"]
[Result "0-1"]
[WhiteElo "2463"]
[BlackElo "2340"]
[TimeControl "180+1"]
[EndTime "8:55:02 PDT"]
[Termination "IsmaelAmadorGarcia won on time"]

1. e4 {[%clk 0:02:52.8]} 1... e5 {[%clk 0:02:58.7]} 2. Nf3 {[%clk 0:02:52.4]}
2... Nc6 {[%clk 0:02:58.7]} 3. d4 {[%clk 0:02:51.8]} 3... exd4 {[%clk
0:02:57.9]} 4. c3 {[%clk 0:02:50.5]} 4... dxc3 {[%clk 0:02:48.2]} 5. Bc4 {[%clk
0:02:49.7]} 5... cxb2 {[%clk 0:02:45]} 6. Bxb2 {[%clk 0:02:49.8]} 6... Bb4+
{[%clk 0:02:45.7]} 7. Nc3 {[%clk 0:02:49.5]} 7... d5 {[%clk 0:02:42]} 8. exd5
{[%clk 0:02:24]} 8... Qe7+ {[%clk 0:02:37.7]} 9. Be2 {[%clk 0:02:22.4]} 9... Nd8
{[%clk 0:02:27.7]} 10. O-O {[%clk 0:02:22]} 10... Nf6 {[%clk 0:02:24.7]} 11.
Bb5+ {[%clk 0:02:02.6]} 11... Kf8 {[%clk 0:02:20.1]} 12. Re1 {[%clk 0:02:00.8]}
12... Qc5 {[%clk 0:02:20.1]} 13. Qb3 {[%clk 0:01:38.5]} 13... Bf5 {[%clk
0:01:32.5]} 14. a3 {[%clk 0:01:34.2]} 14... Bxc3 {[%clk 0:01:32.2]} 15. Bxc3
{[%clk 0:01:34.2]} 15... Kg8 {[%clk 0:01:27]} 16. Rac1 {[%clk 0:00:56.2]} 16...
Qb6 {[%clk 0:00:41.8]} 17. Bd4 {[%clk 0:00:45]} 17... Qa5 {[%clk 0:00:41.9]} 18.
Rxc7 {[%clk 0:00:27.5]} 18... Qxc7 {[%clk 0:00:28.1]} 19. Ng5 {[%clk 0:00:12.3]}
19... h6 {[%clk 0:00:20.3]} 20. d6 {[%clk 0:00:11.3]} 20... Qxd6 {[%clk
0:00:20.4]} 21. Bxf6 {[%clk 0:00:08.9]} 21... gxf6 {[%clk 0:00:19.5]} 22. Re8+
{[%clk 0:00:04]} 22... Kg7 {[%clk 0:00:18.7]} 0-1

[Event "Early-Titled-Tuesday-Blitz-April-02-2024"]
[Site "Chess.com"]
[Date "2024.04.02"]
[Round "5"]
[White "Boundless_Strike"]
[Black "rezamahdavi2008"]
[Result "0-1"]
[WhiteElo "2667"]
[BlackElo "2899"]
[TimeControl "180+1"]
[EndTime "8:55:11 PDT"]
[Termination "rezamahdavi2008 won by resignation"]

1. d4 {[%clk 0:00:36.7]} 1... Nf6 {[%clk 0:02:57.6]} 2. f3 {[%clk 0:00:36.5]}
2... d5 {[%clk 0:02:57.4]} 3. e4 {[%clk 0:00:37.3]} 3... dxe4 {[%clk 0:02:57.7]}
4. Nc3 {[%clk 0:00:38.1]} 4... exf3 {[%clk 0:02:44]} 5. Nxf3 {[%clk 0:00:39]}
5... e6 {[%clk 0:02:37]} 6. Bd3 {[%clk 0:00:36]} 6... c5 {[%clk 0:02:37.2]} 7.
Be3 {[%clk 0:00:35.6]} 7... cxd4 {[%clk 0:02:36.1]} 8. Nxd4 {[%clk 0:00:36.1]}
8... Be7 {[%clk 0:02:31.7]} 9. O-O {[%clk 0:00:28.4]} 9... Nbd7 {[%clk
0:02:30.3]} 10. Qe1 {[%clk 0:00:24]} 10... Ne5 {[%clk 0:02:27.9]} 11. Bb5+
{[%clk 0:00:18.3]} 11... Bd7 {[%clk 0:02:28.5]} 12. Bf4 {[%clk 0:00:17.9]} 12...
Ng6 {[%clk 0:02:28.3]} 13. Bg3 {[%clk 0:00:09.7]} 13... Bc5 {[%clk 0:02:27.4]}
14. Rd1 {[%clk 0:00:06.5]} 14... a6 {[%clk 0:02:20.5]} 15. Bxd7+ {[%clk
0:00:06.3]} 15... Qxd7 {[%clk 0:02:21.4]} 16. Ne2 {[%clk 0:00:05.7]} 16... e5
{[%clk 0:02:07.2]} 17. Kh1 {[%clk 0:00:05.9]} 17... exd4 {[%clk 0:02:07.9]} 18.
Nxd4+ {[%clk 0:00:06.5]} 18... Qe7 {[%clk 0:02:08.7]} 19. Qa5 {[%clk 0:00:03]}
19... Bxd4 {[%clk 0:01:46.9]} 20. Rfe1 {[%clk 0:00:03.1]} 20... Be5 {[%clk
0:01:36.5]} 21. Bxe5 {[%clk 0:00:02.7]} 21... O-O {[%clk 0:01:36.9]} 22. Bd6
{[%clk 0:00:02.5]} 22... Qd8 {[%clk 0:01:37.6]} 23. Qc3 {[%clk 0:00:02]} 23...
Re8 {[%clk 0:01:37]} 24. Rxe8+ {[%clk 0:00:02.7]} 24... Qxe8 {[%clk 0:01:37.1]}
25. Re1 {[%clk 0:00:03.3]} 25... Qd7 {[%clk 0:01:36.2]} 26. Bg3 {[%clk
0:00:03.7]} 26... Re8 {[%clk 0:01:36.2]} 27. Rf1 {[%clk 0:00:04.3]} 27... Ne4
{[%clk 0:01:36.1]} 28. Qe1 {[%clk 0:00:04]} 28... Nxg3+ {[%clk 0:01:36.1]} 29.
Qxg3 {[%clk 0:00:04.9]} 29... Qe6 {[%clk 0:01:36.2]} 30. Qf2 {[%clk 0:00:05.3]}
30... h6 {[%clk 0:01:34.1]} 31. h3 {[%clk 0:00:05.8]} 31... Re7 {[%clk
0:01:34.6]} 32. c3 {[%clk 0:00:06.2]} 32... Kh7 {[%clk 0:01:34.7]} 33. b3 {[%clk
0:00:06]} 33... b5 {[%clk 0:01:33]} 34. Qf3 {[%clk 0:00:05.6]} 34... Ne5 {[%clk
0:01:31.4]} 35. Qf2 {[%clk 0:00:05.7]} 35... Rc7 {[%clk 0:01:29.1]} 36. Qe3
{[%clk 0:00:05.3]} 36... Ng6 {[%clk 0:01:28.1]} 37. Qg3 {[%clk 0:00:05.1]} 37...
Qe5 {[%clk 0:01:28.1]} 38. Qf3 {[%clk 0:00:04.7]} 38... Qxc3 {[%clk 0:01:27.6]}
39. Qf5 {[%clk 0:00:05.2]} 39... Qg3 {[%clk 0:01:25.6]} 40. Qe4 {[%clk
0:00:02.4]} 40... Re7 {[%clk 0:01:23.8]} 41. Qc2 {[%clk 0:00:02.2]} 41... Re1
{[%clk 0:01:23.6]} 42. Kg1 {[%clk 0:00:02]} 42... Qe3+ {[%clk 0:01:23.4]} 43.
Qf2 {[%clk 0:00:01.3]} 43... Rxf1+ {[%clk 0:01:23.7]} 44. Kxf1 {[%clk
0:00:02.2]} 44... Qxf2+ {[%clk 0:01:24]} 45. Kxf2 {[%clk 0:00:03.1]} 45... Ne5
{[%clk 0:01:23.8]} 46. Ke3 {[%clk 0:00:03.3]} 46... Nc6 {[%clk 0:01:23.7]} 47.
Ke4 {[%clk 0:00:03.7]} 47... Kg6 {[%clk 0:01:23.9]} 48. Kd5 {[%clk 0:00:03.7]}
48... Nb4+ {[%clk 0:01:24.5]} 49. Kc5 {[%clk 0:00:04.4]} 49... Nxa2 {[%clk
0:01:25.4]} 50. Kb6 {[%clk 0:00:04.7]} 50... Nc1 {[%clk 0:01:26]} 51. Kxa6
{[%clk 0:00:05.1]} 51... Nxb3 {[%clk 0:01:26.5]} 52. Kxb5 {[%clk 0:00:06]} 52...
Kf5 {[%clk 0:01:26.9]} 53. Kc4 {[%clk 0:00:06.9]} 53... Nd2+ {[%clk 0:01:26.7]}
54. Kd3 {[%clk 0:00:07.6]} 54... Ne4 {[%clk 0:01:26.3]} 55. Ke3 {[%clk
0:00:08.2]} 55... Nf6 {[%clk 0:01:26.4]} 56. g4+ {[%clk 0:00:09.1]} 56... Nxg4+
{[%clk 0:01:26.6]} 57. hxg4+ {[%clk 0:00:10]} 57... Kxg4 {[%clk 0:01:27.5]} 0-1

[Event "Early-Titled-Tuesday-Blitz-April-02-2024"]
[Site "Chess.com"]
[Date "2024.04.02"]
[Round "5"]
[White "AlphaGoosee"]
[Black "Matibar"]
[Result "0-1"]
[WhiteElo "2523"]
[BlackElo "2728"]
[TimeControl "180+1"]
[EndTime "8:55:11 PDT"]
[Termination "Matibar won by resignation"]

1. e4 {[%clk 0:03:00.9]} 1... c5 {[%clk 0:02:58.8]} 2. Nf3 {[%clk 0:03:01.2]}
2... a6 {[%clk 0:02:58.6]} 3. c4 {[%clk 0:03:01.1]} 3... Nc6 {[%clk 0:02:56.9]}
4. d4 {[%clk 0:03:01.7]} 4... cxd4 {[%clk 0:02:57.7]} 5. Nxd4 {[%clk 0:03:02.5]}
5... Nf6 {[%clk 0:02:58.1]} 6. Nc3 {[%clk 0:03:03]} 6... e5 {[%clk 0:02:58.4]}
7. Nde2 {[%clk 0:02:57.4]} 7... Bc5 {[%clk 0:02:56.2]} 8. h3 {[%clk 0:02:54.1]}
8... O-O {[%clk 0:02:47.7]} 9. g3 {[%clk 0:02:30.1]} 9... d6 {[%clk 0:02:45.1]}
10. Bg2 {[%clk 0:02:30.1]} 10... b5 {[%clk 0:02:39.3]} 11. cxb5 {[%clk
0:02:26.8]} 11... axb5 {[%clk 0:02:39.2]} 12. O-O {[%clk 0:02:27.7]} 12... b4
{[%clk 0:02:38.5]} 13. Nd5 {[%clk 0:02:25.5]} 13... Nxd5 {[%clk 0:02:38.6]} 14.
exd5 {[%clk 0:02:24]} 14... Ne7 {[%clk 0:02:38.6]} 15. Be3 {[%clk 0:02:15.4]}
15... Bxe3 {[%clk 0:02:34.4]} 16. fxe3 {[%clk 0:02:16.3]} 16... Qb6 {[%clk
0:02:34.4]} 17. Qd2 {[%clk 0:01:57.4]} 17... Nf5 {[%clk 0:02:17.3]} 18. Kf2
{[%clk 0:01:56.3]} 18... Ba6 {[%clk 0:02:05.1]} 19. Be4 {[%clk 0:01:52.3]} 19...
Ne7 {[%clk 0:02:03.3]} 20. Kg2 {[%clk 0:01:34.5]} 20... f5 {[%clk 0:01:59.6]}
21. Bd3 {[%clk 0:01:34.7]} 21... Bb7 {[%clk 0:01:59.2]} 22. e4 {[%clk
0:01:27.3]} 22... Rf7 {[%clk 0:01:43.6]} 23. a3 {[%clk 0:01:23.8]} 23... Raf8
{[%clk 0:01:34.5]} 24. Qxb4 {[%clk 0:00:59.5]} 24... Qxb4 {[%clk 0:01:23.9]} 25.
axb4 {[%clk 0:01:00.4]} 25... fxe4 {[%clk 0:01:24.3]} 26. Rxf7 {[%clk
0:00:58.1]} 26... Kxf7 {[%clk 0:01:24]} 27. Rf1+ {[%clk 0:00:27.4]} 27... Kg8
{[%clk 0:01:23.8]} 28. Bxe4 {[%clk 0:00:21.1]} 28... Bxd5 {[%clk 0:01:23.2]} 29.
Nc3 {[%clk 0:00:18.1]} 29... Rxf1 {[%clk 0:01:19.2]} 30. Kxf1 {[%clk 0:00:17.7]}
30... Bc4+ {[%clk 0:01:19.3]} 31. Kf2 {[%clk 0:00:17.3]} 31... d5 {[%clk
0:01:20.2]} 32. Bc2 {[%clk 0:00:16.9]} 32... Ba6 {[%clk 0:01:13.1]} 33. b5
{[%clk 0:00:16.7]} 33... Bb7 {[%clk 0:01:12.6]} 34. Na4 {[%clk 0:00:17.6]} 34...
Nc8 {[%clk 0:01:03.5]} 35. Bf5 {[%clk 0:00:17]} 35... Nd6 {[%clk 0:01:02.8]} 36.
Bd7 {[%clk 0:00:14.6]} 36... Kf8 {[%clk 0:01:00.3]} 37. Nc5 {[%clk 0:00:13.6]}
37... Ke7 {[%clk 0:01:00.4]} 38. Bc6 {[%clk 0:00:06.3]} 38... Bxc6 {[%clk
0:00:55.5]} 39. bxc6 {[%clk 0:00:07.2]} 39... Nb5 {[%clk 0:00:56.1]} 40. Nd3
{[%clk 0:00:05.3]} 40... Kd6 {[%clk 0:00:55.3]} 41. b4 {[%clk 0:00:03.3]} 41...
e4 {[%clk 0:00:54.4]} 42. Nf4 {[%clk 0:00:03.6]} 42... g6 {[%clk 0:00:53.9]} 43.
Nh5 {[%clk 0:00:04.5]} 43... gxh5 {[%clk 0:00:53.5]} 44. Ke3 {[%clk 0:00:04.9]}
0-1

[Event "Early-Titled-Tuesday-Blitz-April-02-2024"]
[Site "Chess.com"]
[Date "2024.04.02"]
[Round "5"]
[White "ansko1999"]
[Black "Quattroporte300"]
[Result "1/2-1/2"]
[WhiteElo "2637"]
[BlackElo "2509"]
[TimeControl "180+1"]
[EndTime "8:55:12 PDT"]
[Termination "Game drawn by repetition"]

1. c4 {[%clk 0:03:00.9]} 1... c5 {[%clk 0:02:58.8]} 2. Nf3 {[%clk 0:03:01]} 2...
Nc6 {[%clk 0:02:59.3]} 3. Nc3 {[%clk 0:03:00.4]} 3... e5 {[%clk 0:02:59.1]} 4.
g3 {[%clk 0:02:59.7]} 4... g6 {[%clk 0:02:59.6]} 5. Bg2 {[%clk 0:02:59.8]} 5...
Bg7 {[%clk 0:03:00.2]} 6. O-O {[%clk 0:02:59.9]} 6... Nge7 {[%clk 0:03:00.9]} 7.
Ne1 {[%clk 0:02:56.6]} 7... O-O {[%clk 0:03:00.6]} 8. Nc2 {[%clk 0:02:56.8]}
8... f5 {[%clk 0:02:57.4]} 9. Ne3 {[%clk 0:02:55.7]} 9... d6 {[%clk 0:02:54.2]}
10. d3 {[%clk 0:02:53.9]} 10... Nd4 {[%clk 0:02:48]} 11. Ned5 {[%clk 0:02:52.1]}
11... Nxd5 {[%clk 0:02:36.5]} 12. Nxd5 {[%clk 0:02:47.4]} 12... Be6 {[%clk
0:02:32.3]} 13. Bd2 {[%clk 0:02:43.8]} 13... Qd7 {[%clk 0:02:29.8]} 14. e3
{[%clk 0:02:41.2]} 14... Nc6 {[%clk 0:02:29.2]} 15. a3 {[%clk 0:02:39.3]} 15...
Rab8 {[%clk 0:02:04]} 16. Rb1 {[%clk 0:02:35.2]} 16... b5 {[%clk 0:02:00.5]} 17.
b4 {[%clk 0:02:33.7]} 17... bxc4 {[%clk 0:01:50.8]} 18. dxc4 {[%clk 0:02:34.6]}
18... e4 {[%clk 0:01:48.7]} 19. b5 {[%clk 0:02:29.4]} 19... Ne5 {[%clk
0:01:47.5]} 20. Qc2 {[%clk 0:02:25.4]} 20... Bxd5 {[%clk 0:01:37]} 21. cxd5
{[%clk 0:02:25.8]} 21... Rxb5 {[%clk 0:01:34.6]} 22. Bc3 {[%clk 0:02:16.2]}
22... Rfb8 {[%clk 0:01:26.7]} 23. Bxe5 {[%clk 0:02:11]} 23... Bxe5 {[%clk
0:01:26.4]} 24. f3 {[%clk 0:02:11.3]} 24... Rb2 {[%clk 0:01:22.6]} 25. Rxb2
{[%clk 0:02:07.5]} 25... Rxb2 {[%clk 0:01:23.5]} 26. Qc4 {[%clk 0:02:07.9]}
26... exf3 {[%clk 0:01:11.7]} 27. Bxf3 {[%clk 0:02:08.2]} 27... Qb5 {[%clk
0:01:08.4]} 28. Qh4 {[%clk 0:01:53.5]} 28... Qd7 {[%clk 0:00:43.5]} 29. e4
{[%clk 0:01:41.2]} 29... Kg7 {[%clk 0:00:37.3]} 30. exf5 {[%clk 0:01:37.4]}
30... Bd4+ {[%clk 0:00:31.7]} 31. Kh1 {[%clk 0:01:36.8]} 31... Qxf5 {[%clk
0:00:32]} 32. Bg2 {[%clk 0:01:24.8]} 32... Bf6 {[%clk 0:00:20.9]} 33. Qa4 {[%clk
0:01:09.3]} 33... Qc2 {[%clk 0:00:20]} 34. Qd7+ {[%clk 0:01:08.6]} 34... Kh6
{[%clk 0:00:19.7]} 35. Qh3+ {[%clk 0:01:05]} 35... Kg7 {[%clk 0:00:20.2]} 36.
Qd7+ {[%clk 0:00:59.8]} 36... Kh6 {[%clk 0:00:20.4]} 37. Qh3+ {[%clk 0:00:58.1]}
37... Kg7 {[%clk 0:00:20.7]} 38. a4 {[%clk 0:00:47.6]} 38... Rb1 {[%clk
0:00:15.8]} 39. Qd7+ {[%clk 0:00:46]} 39... Kh6 {[%clk 0:00:16.1]} 40. Qh3+
{[%clk 0:00:45.9]} 40... Kg7 {[%clk 0:00:16.8]} 41. Qd7+ {[%clk 0:00:45.3]}
41... Kh6 {[%clk 0:00:17.1]} 42. Qh3+ {[%clk 0:00:36]} 42... Kg7 {[%clk
0:00:17.6]} 1/2-1/2

[Event "Early-Titled-Tuesday-Blitz-April-02-2024"]
[Site "Chess.com"]
[Date "2024.04.02"]
[Round "5"]
[White "ChessFighter_2011"]
[Black "Zq1"]
[Result "1-0"]
[WhiteElo "2912"]
[BlackElo "2610"]
[TimeControl "180+1"]
[EndTime "8:55:13 PDT"]
[Termination "ChessFighter_2011 won on time"]

1. e4 {[%clk 0:02:57.7]} 1... c5 {[%clk 0:02:59.1]} 2. Nf3 {[%clk 0:02:56.5]}
2... d6 {[%clk 0:02:57.1]} 3. Bb5+ {[%clk 0:02:54.6]} 3... Bd7 {[%clk
0:02:56.3]} 4. c4 {[%clk 0:02:50.3]} 4... Nf6 {[%clk 0:02:54.6]} 5. Nc3 {[%clk
0:02:50]} 5... Nc6 {[%clk 0:02:48.9]} 6. O-O {[%clk 0:02:48]} 6... g6 {[%clk
0:02:47.6]} 7. d4 {[%clk 0:02:44.7]} 7... cxd4 {[%clk 0:02:45.8]} 8. Nxd4 {[%clk
0:02:45.6]} 8... Bg7 {[%clk 0:02:36]} 9. Be3 {[%clk 0:02:34.8]} 9... Ng4 {[%clk
0:02:09.7]} 10. Nxc6 {[%clk 0:01:46.2]} 10... bxc6 {[%clk 0:02:08.4]} 11. Bxc6
{[%clk 0:01:44.5]} 11... Nxe3 {[%clk 0:02:07.5]} 12. Bxd7+ {[%clk 0:01:42.5]}
12... Qxd7 {[%clk 0:02:07.2]} 13. fxe3 {[%clk 0:01:43.4]} 13... Bxc3 {[%clk
0:02:03.6]} 14. bxc3 {[%clk 0:01:44.3]} 14... Qe6 {[%clk 0:01:46.8]} 15. Qa4+
{[%clk 0:01:36.7]} 15... Kf8 {[%clk 0:01:43.3]} 16. c5 {[%clk 0:01:15.8]} 16...
dxc5 {[%clk 0:01:42.3]} 17. Rad1 {[%clk 0:01:16.4]} 17... Kg7 {[%clk 0:01:38.4]}
18. Rd5 {[%clk 0:01:16.6]} 18... Rab8 {[%clk 0:01:24.6]} 19. Rxc5 {[%clk
0:01:08.4]} 19... Rb2 {[%clk 0:01:17.6]} 20. Qd4+ {[%clk 0:01:08.3]} 20... f6
{[%clk 0:01:13.1]} 21. e5 {[%clk 0:01:08.7]} 21... f5 {[%clk 0:01:00.3]} 22. a4
{[%clk 0:00:52.6]} 22... Rhb8 {[%clk 0:00:55.7]} 23. Rc7 {[%clk 0:00:46.7]}
23... R8b7 {[%clk 0:00:21.6]} 24. Rxb7 {[%clk 0:00:39.4]} 24... Rxb7 {[%clk
0:00:20.4]} 25. e4 {[%clk 0:00:40.1]} 25... Rd7 {[%clk 0:00:18]} 26. exf5 {[%clk
0:00:37]} 26... gxf5 {[%clk 0:00:07]} 27. Qf4 {[%clk 0:00:37.1]} 27... Rd3
{[%clk 0:00:04.2]} 28. Qg5+ {[%clk 0:00:35.5]} 28... Qg6 {[%clk 0:00:04.1]} 29.
Qxe7+ {[%clk 0:00:35.5]} 29... Kh6 {[%clk 0:00:04.2]} 30. Qh4+ {[%clk
0:00:35.6]} 30... Kg7 {[%clk 0:00:04.4]} 31. Qc4 {[%clk 0:00:33.8]} 31... Rd2
{[%clk 0:00:03.5]} 32. Qc7+ {[%clk 0:00:33.3]} 32... Kh6 {[%clk 0:00:03.1]} 33.
Qb7 {[%clk 0:00:33.1]} 33... f4 {[%clk 0:00:01.7]} 34. Qf3 {[%clk 0:00:32.3]}
1-0

[Event "Early-Titled-Tuesday-Blitz-April-02-2024"]
[Site "Chess.com"]
[Date "2024.04.02"]
[Round "5"]
[White "LiamPutnam2008"]
[Black "CarlosjPineror"]
[Result "1-0"]
[WhiteElo "2925"]
[BlackElo "2679"]
[TimeControl "180+1"]
[EndTime "8:55:18 PDT"]
[Termination "LiamPutnam2008 won by resignation"]

1. d4 {[%clk 0:03:00.9]} 1... Nf6 {[%clk 0:02:56.3]} 2. Nf3 {[%clk 0:02:59.1]}
2... g6 {[%clk 0:02:55.2]} 3. Bf4 {[%clk 0:02:44.4]} 3... d6 {[%clk 0:02:54.3]}
4. Nbd2 {[%clk 0:02:44]} 4... Bg7 {[%clk 0:02:46.7]} 5. e3 {[%clk 0:02:43.5]}
5... O-O {[%clk 0:02:47]} 6. h3 {[%clk 0:02:43.9]} 6... Nc6 {[%clk 0:02:45.5]}
7. Bh2 {[%clk 0:02:42.5]} 7... Nd7 {[%clk 0:02:46.1]} 8. Bd3 {[%clk 0:02:37.3]}
8... e5 {[%clk 0:02:46.4]} 9. c3 {[%clk 0:02:35.9]} 9... h6 {[%clk 0:02:45.9]}
10. O-O {[%clk 0:02:35]} 10... f5 {[%clk 0:02:42.8]} 11. dxe5 {[%clk 0:02:26.1]}
11... Ndxe5 {[%clk 0:02:38.9]} 12. Be2 {[%clk 0:02:14.9]} 12... Be6 {[%clk
0:02:29.6]} 13. Nd4 {[%clk 0:02:11.1]} 13... Bf7 {[%clk 0:02:22.1]} 14. N2f3
{[%clk 0:02:04.9]} 14... Nd7 {[%clk 0:02:13.9]} 15. Nxc6 {[%clk 0:02:01.1]}
15... bxc6 {[%clk 0:02:13.7]} 16. Nd4 {[%clk 0:02:01.6]} 16... Ne5 {[%clk
0:01:27]} 17. Bxe5 {[%clk 0:01:43.9]} 17... dxe5 {[%clk 0:01:26.9]} 18. Nxc6
{[%clk 0:01:44.7]} 18... Qe8 {[%clk 0:01:27]} 19. Qa4 {[%clk 0:01:33.7]} 19...
Kh7 {[%clk 0:00:45.1]} 20. Bc4 {[%clk 0:01:22.6]} 20... Be6 {[%clk 0:00:41.9]}
21. Bxe6 {[%clk 0:01:19.6]} 21... Qxe6 {[%clk 0:00:42.8]} 22. Rad1 {[%clk
0:01:18.6]} 22... Rf6 {[%clk 0:00:42.6]} 23. Na5 {[%clk 0:01:18.5]} 23... Rb8
{[%clk 0:00:41.1]} 24. Rd2 {[%clk 0:01:15.1]} 24... e4 {[%clk 0:00:33]} 25. Nb3
{[%clk 0:01:12.2]} 25... Qb6 {[%clk 0:00:30.4]} 26. Rfd1 {[%clk 0:01:05.6]}
26... f4 {[%clk 0:00:28]} 27. Qxe4 {[%clk 0:01:03.6]} 27... fxe3 {[%clk
0:00:21]} 28. Qxe3 {[%clk 0:01:04.5]} 28... Qxe3 {[%clk 0:00:13.2]} 29. fxe3
{[%clk 0:01:05.4]} 29... h5 {[%clk 0:00:12.9]} 30. Rd7 {[%clk 0:01:04.4]} 30...
Kh6 {[%clk 0:00:12.8]} 31. Rxc7 {[%clk 0:01:04.5]} 31... Re6 {[%clk 0:00:13.4]}
32. Rdd7 {[%clk 0:01:04.3]} 32... Be5 {[%clk 0:00:12.6]} 33. Rh7+ {[%clk
0:01:02.6]} 33... Kg5 {[%clk 0:00:12.9]} 34. Rc5 {[%clk 0:01:03.4]} 34... Kh4
{[%clk 0:00:12.9]} 35. Rf7 {[%clk 0:00:56.4]} 35... g5 {[%clk 0:00:10.9]} 36.
Nd2 {[%clk 0:00:46.7]} 36... g4 {[%clk 0:00:10.3]} 37. hxg4 {[%clk 0:00:47.2]}
37... hxg4 {[%clk 0:00:11.2]} 38. Rh7+ {[%clk 0:00:46.4]} 38... Kg5 {[%clk
0:00:11.5]} 39. Nc4 {[%clk 0:00:43.6]} 39... Rbe8 {[%clk 0:00:10.2]} 40. Nxe5
{[%clk 0:00:43.2]} 40... Rxe5 {[%clk 0:00:10.6]} 41. Rxe5+ {[%clk 0:00:44.1]}
41... Rxe5 {[%clk 0:00:11.2]} 42. Rxa7 {[%clk 0:00:44.2]} 42... Rxe3 {[%clk
0:00:11.1]} 43. Kf2 {[%clk 0:00:44.8]} 43... Rd3 {[%clk 0:00:11.2]} 44. Ra5+
{[%clk 0:00:44.3]} 44... Kf4 {[%clk 0:00:10.3]} 45. g3+ {[%clk 0:00:43.8]} 45...
Ke4 {[%clk 0:00:10.6]} 46. Ra4+ {[%clk 0:00:44.4]} 46... Kf5 {[%clk 0:00:11.2]}
47. Rf4+ {[%clk 0:00:44.9]} 47... Kg5 {[%clk 0:00:11.9]} 48. Rd4 {[%clk
0:00:45.6]} 1-0